Cogmind - Beta 16.1 @@@ ROGUE MODE // 2026.02.20 @ 02:57:37 Player: Ceorik Result: Self-destructed Performance ------------- Evolutions (6) 3000 Regions Visited (15) 3000 Robots Destroyed (106) 530 Value Destroyed (2963) 2963 Prototype IDs (33) 660 Alien Tech Used (0) 0 Bonus (2434) 2434 TOTAL SCORE: 12587 Bonus ------- High Alert Combat Kills 259 Follower Combat Kills 675 Entered Garrisons 200 Used RIF Installer 500 Entered DSFs 500 Aligned with FarCom 300 Cogmind --------- Core Integrity 1150/1150 Matter 77/300 Energy 26/100 System Corruption 0% Temperature Cool (0) Movement Core (300) Ox5 Location -4/Factory Parts ------- > --- POWER (2) -------- (None) > --- PROPULSION (4) --- (None) > --- UTILITY (10) ----- Improved Coolant Injector Improved Coolant Injector Advanced Signal Interpreter Melee Analysis Suite Improved Melee Analysis Suite Advanced Transmission Jammer Point Defense System System Shield Improved Dynamic Insulation System > --- WEAPON (3) ------- High-powered Shock Rifle High-powered Shock Rifle > --- INVENTORY (5) ---- Improved Antigrav System Heavy Disruptor Cannon Peak State ------------ > --- POWER ------------ Micro Fission Core Micro Fission Core > --- PROPULSION ------- Armored Huge Wheel > --- UTILITY ---------- Improved Coolant Injector Improved Coolant Injector Melee Analysis Suite Improved Melee Analysis Suite Insulated Plating System Shield Relay Coupler [Swarmer] > --- WEAPON ----------- Enhanced Gauss Cannon Makeshift Spear > --- INVENTORY -------- Point Defense System Improved Dynamic Insulation System [Rating: 59] Favorites ----------- Power Improved Deuterium Engine Engine Improved Deuterium Engine Power Core Light Nuclear Core Propulsion Aerolev Unit Leg Aluminum Leg Wheel Armored Huge Wheel Hover Unit Aerolev Unit Flight Unit Improved VTOL Module Utility Small Storage Unit Device ECM Suite Storage Small Storage Unit Processor Melee Analysis Suite Hackware Hacking Suite Protection Power Shielding Weapon Katana Energy Gun Medium Laser Energy Cannon Heavy Disruptor Cannon Ballistic Gun Light Assault Rifle Ballistic Cannon Enhanced Gauss Cannon Launcher Guided Missile Launcher Special Weapon Remote Datajack Impact Weapon Heavy Mace Slashing Weapon Katana Piercing Weapon Makeshift Spear Special Melee Weapon Improved Datajack Build | -11 -10 -10 -9 -9 -9 -8 -8 -8 -7 -7 -6 -6 -5 -5 -4 ------- Run | Yrd Mat Min Mat Min Exi Min Mat Sto Fac Gar Fac Ext Fac DSF Fac Slots Evolved 12 | . . . 2 . . . 2 . 2 . 2 . 2 . 2 Power 1 | . . . . . . . . . 1 . . . . . . Propulsion 2 | . . . 2 . . . . . . . . . . . . Utility 8 | . . . . . . . 2 . 1 . 2 . 2 . 1 Weapon 1 | . . . . . . . . . . . . . . . 1 Parts Attached 113 | 6 6 . 12 3 1 . 11 21 12 10 10 6 . 8 7 Power 20 | 1 1 . . 1 . . 2 4 3 2 2 2 . 2 . Engine 13 | 1 1 . . 1 . . 1 2 2 1 2 2 . . . Core 7 | . . . . . . . 1 2 1 1 . . . 2 . Reactor . | . . . . . . . . . . . . . . . . Propulsion 33 | 2 . . 5 2 . . 4 7 3 5 2 1 . 2 . Treads . | . . . . . . . . . . . . . . . . Leg 17 | 2 . . . 2 . . 4 2 . 4 2 1 . . . Wheel 2 | . . . . . . . . . . . . . . 2 . Hover 13 | . . . 5 . . . . 4 3 1 . . . . . Flight 1 | . . . . . . . . 1 . . . . . . . Utility 31 | 1 3 . . . . . 4 1 5 2 6 2 . 3 4 Device 15 | . 2 . . . . . 3 1 2 . 1 1 . 2 3 Storage 2 | 1 . . . . . . . . . . 1 . . . . Processor 6 | . . . . . . . . . 2 1 1 1 . . 1 Hackware 5 | . . . . . . . . . 1 1 3 . . . . Protection 3 | . 1 . . . . . 1 . . . . . . 1 . Artifact . | . . . . . . . . . . . . . . . . Weapon 29 | 2 2 . 7 . 1 . 1 9 1 1 . 1 . 1 3 Energy Gun 7 | 1 1 . 1 . . . . 2 . . . . . . 2 Energy Cannon 3 | . . . . . . . . 2 . . . . . . 1 Ballistic Gun 5 | 1 1 . 2 . . . . 1 . . . . . . . Ballistic Cannon 1 | . . . . . . . . . . . . . . 1 . Launcher 3 | . . . 1 . . . . 2 . . . . . . . Special Weapon 2 | . . . . . 1 . . . . 1 . . . . . Impact Weapon 5 | . . . 3 . . . . 2 . . . . . . . Slashing Weapon 1 | . . . . . . . . . 1 . . . . . . Piercing Weapon 1 | . . . . . . . . . . . . 1 . . . Special Melee Weapon 1 | . . . . . . . 1 . . . . . . . . Unidentified Prototypes 10 | . . . 3 . . . . 4 2 . 1 . . . . Parts Lost 50 | . 3 . 1 3 . . 6 5 . 4 3 15 . 10 . Power 9 | . . . . . . . 1 1 . . 1 4 . 2 . Propulsion 16 | . . . 1 2 . . 2 2 . 2 . 5 . 2 . Utility 16 | . 1 . . . . . 3 1 . 2 2 4 . 3 . Weapon 9 | . 2 . . 1 . . . 1 . . . 2 . 3 . Highest Loss Streak 10 | . 2 . 1 3 . . 3 4 . 2 2 7 . 10 . To Critical Strikes . | . . . . . . . . . . . . . . . . Average Backups 6 | . 5 7 7 7 7 8 7 6 6 5 4 5 3 3 1 Power . | . 1 1 1 2 2 2 1 . . . . . . . . Propulsion . | . 1 5 . . . . . . 1 . . 1 . . . Utility 1 | . 1 . . 1 1 1 . . 1 2 1 1 1 2 . Weapon 2 | . . . 3 3 3 3 3 4 2 1 1 1 1 . . Tool/Special . | . . . . . . . . . . . . . . . . Unused Backups 21 | . 3 . 4 . . . 3 2 4 3 . 1 . . 1 Power 2 | . . . . . . . 1 . 1 . . . . . . Propulsion 2 | . 1 . . . . . . . . . . . . . 1 Utility 8 | . 2 . 1 . . . . . 2 2 . 1 . . . Weapon 7 | . . . 3 . . . 1 2 1 . . . . . . Tool/Special 2 | . . . . . . . 1 . . 1 . . . . . Average Slot Usage (%) 88 | . 94 100 99 78 77 77 92 77 99 96 93 82 38 53 44 Engine 8 | . 14 14 11 11 11 11 6 3 7 14 9 7 . . . Core 1 | . . . . . . . 2 3 7 . . . . 2 . Leg 16 | . 28 28 . 17 22 22 34 18 . 6 26 22 . . . Hover 10 | . . . 43 6 . . . 11 29 23 . . . . . Device 11 | . 7 14 11 11 11 11 21 17 13 5 . 3 . 6 21 Storage 8 | . 14 14 11 11 11 11 9 9 7 7 6 6 5 3 . Processor 6 | . . . . . . . . . 14 14 9 10 11 11 15 Hackware 5 | . . . . . . . . . 1 8 26 18 11 9 5 Energy Gun 1 | . 13 14 . . . . . 5 . . . . . . . Ballistic Gun 1 | . 13 14 8 . . . . . . . . . . . . Impact Weapon 8 | . . . 11 22 22 22 15 5 7 3 2 4 3 3 . Slashing Weapon 2 | . . . . . . . . . 6 4 6 4 . . . Peak Build Rating 59 | 6 7 7 16 16 20 12 35 35 47 52 52 52 22 59 58 Average Rating 29 | 4 6 7 13 11 11 12 23 22 44 46 48 40 20 40 45 On Entrance 19 | . 6 7 7 13 11 12 12 14 32 47 40 51 15 22 23 Avg Prop Armor Cover (%) 7 | . . . . 13 . . . . . 6 . 9 . . . Naked Turns . | . . . . . . . . . . . . . . . . Heaviest Build 37 | 14 16 14 21 17 17 17 26 23 31 36 35 37 15 30 23 Greatest Support 68 | 20 20 20 28 28 20 20 50 50 33 50 68 68 3 56 3 Greatest Overweight (x) 7 | . . . . 1 . . 2 2 . 1 . 3 4 4 7 Average Overweight (x) . | . . . . . . . . . . . . . 3 . 2 Largest Inventory Capacity 10 | 8 8 8 8 8 8 8 8 8 8 8 10 10 10 10 5 Average Capacity 8 | 7 8 8 8 8 8 8 8 8 8 8 8 10 10 8 5 Most Carried 9 | 2 8 7 8 8 8 8 8 8 8 8 8 9 5 7 5 Average Carried 6 | . 5 7 7 7 7 8 7 6 7 6 5 6 3 3 1 Final Capacity 10 | 8 8 8 8 8 8 8 8 8 8 8 10 10 10 5 5 Final Carried 8 | . 7 7 8 7 8 8 7 8 7 7 6 3 3 3 3 Class Distribution -------------------- 36% | Scavenger-Mutant 28% | Mutant 23% | Gladiator 8% | Scavenger-Gladiator Dominant Class ---------------- Mutant | -10/Materials Mutant | -10/Mines Mutant | -9/Materials Scavenger-Mutant | -9/Mines Scavenger-Mutant | -9/Exiles Scavenger-Mutant | -8/Mines Scavenger-Mutant | -8/Materials Mutant | -8/Storage Gladiator | -7/Factory Gladiator | -7/Garrison Scavenger-Mutant | -6/Factory Scavenger-Gladiator | -6/Extension Gladiator | -5/Factory Gladiator | -5/DSF Mutant | -4/Factory Resources | -11 -10 -10 -9 -9 -9 -8 -8 -8 -7 -7 -6 -6 -5 -5 -4 ----------- Run | Yrd Mat Min Mat Min Exi Min Mat Sto Fac Gar Fac Ext Fac DSF Fac Matter Collected 2576 | 220 200 . 170 53 20 . 135 212 246 715 150 434 . 21 . Remotely . | . . . . . . . . . . . . . . . . Salvage Created 4006 | . 372 . 309 183 . 40 93 481 312 1015 495 636 . 70 . Parts 221 | . 32 . 16 4 . 3 5 26 27 52 17 33 . 6 . Haulers Intercepted 7 | . 2 . 3 . . . 1 1 . . . . . . . Recyclers Shooed 4 | . 1 . . 1 . . . . . . . 2 . . . Parts Field Recycled . | . . . . . . . . . . . . . . . . Retrieved Matter . | . . . . . . . . . . . . . . . . Parts Self-Destructed . | . . . . . . . . . . . . . . . . Prevented . | . . . . . . . . . . . . . . . . Parts Restored . | . . . . . . . . . . . . . . . . Kills | -11 -10 -10 -9 -9 -9 -8 -8 -8 -7 -7 -6 -6 -5 -5 -4 ------- Run | Yrd Mat Min Mat Min Exi Min Mat Sto Fac Gar Fac Ext Fac DSF Fac Combat Hostiles Destroyed 73 | . 12 . 5 3 . 3 1 6 4 27 1 6 . 5 . Melee 21 | . . . 1 . . 2 1 1 4 10 1 1 . . . Guns 16 | . 12 . . . . . . 4 . . . . . . . Cannons 5 | . . . . . . . . . . . . . . 5 . AOE 27 | . . . 4 1 . . . 1 . 16 . 5 . . . Classes Destroyed 12 | . 3 . 1 1 . . . 1 2 2 . 2 . . . Worker 9 | . . . 1 . . . . 4 . . . 4 . . . Builder 5 | . . . . . . . . 1 . . 2 2 . . . Tunneler 1 | . . . . . . . . . . . . 1 . . . Hauler 7 | . 2 . 3 . . . 1 1 . . . . . . . Recycler 9 | . . . . 1 . . . 1 1 . 3 3 . . . Operator 2 | . . . . . . . . . 1 1 . . . . . Swarmer 30 | . 9 . 2 . . 3 . . . 10 1 . . 5 . Grunt 31 | . 3 . 3 3 . . 1 6 . 12 . 3 . . . Sentry 2 | . . . . . . . . . . 1 . 1 . . . Hunter 3 | . . . . . . . . . . 2 . 1 . . . Programmer 6 | . . . . . . . . . 4 2 . . . . . Behemoth 1 | . . . . . . . . . . . . 1 . . . Best Kill Streak 6 | . 6 . 3 3 . 3 1 4 1 4 4 4 . 5 . Combat Bots Only 5 | . 3 . 3 3 . 3 1 2 1 4 1 2 . 5 . Max Kills in Single Turn 4 | . 1 . 2 1 . 1 1 3 1 4 1 2 . 1 . Gunslinging . | . . . . . . . . . . . . . . . . Exploded 4 | . . . 2 1 . . . 1 . 4 . 1 . . . Melee 1 | . . . 1 . . 1 1 1 1 1 1 1 . . . Uniques/NPCs Destroyed . | . . . . . . . . . . . . . . . . Combat | -11 -10 -10 -9 -9 -9 -8 -8 -8 -7 -7 -6 -6 -5 -5 -4 -------- Run | Yrd Mat Min Mat Min Exi Min Mat Sto Fac Gar Fac Ext Fac DSF Fac Hostile Shots Fired 622 | . 62 . 55 17 . 23 73 64 10 62 24 112 . 116 4 Missed 200 | . 9 . 26 5 . 7 20 20 5 21 6 43 . 35 3 Hits 422 | . 53 . 29 12 . 16 53 44 5 41 18 69 . 81 1 Melee 2 | . . . . . . . 2 . . . . . . . . Projectile 420 | . 53 . 29 12 . 16 51 44 5 41 18 69 . 81 1 AOE 1 | . . . . . . . 1 . . . . . . . . Critical Strikes 13 | . . . 2 . . . 5 3 . 2 . 1 . . . Part Disruptions 2 | . . . . . . . . . 1 1 . . . . . Damage Taken 6983 | . 529 . 439 170 . 156 786 750 170 613 212 1613 . 1524 21 Core 1657 | . 120 . 172 75 . 19 144 154 14 48 38 499 . 374 . Absorbed by Shields 7 | . . . . . . . . 7 . . . . . . . Redirected to Shielding 2 | . 2 . . . . . . . . . . . . . . Regen/Repaired (Parts) 53 | . . . . . . . . . 53 . . . . . . Core Remaining (%) 59 | 100 . 52 . . . 33 . 45 . 91 . 36 . 62 . Volleys Fired 164 | . 45 . 7 1 . . 3 25 . 31 10 25 . 14 3 Largest 2 | . 2 . 1 1 . . 1 2 . 1 1 1 . 1 2 Hottest 120 | . 70 . 36 36 . . . 112 . 39 5 39 . 47 120 Shots Fired 219 | . 86 . 7 1 . . 3 38 . 31 10 25 . 14 4 Gun 118 | . 86 . . . . . . 30 . . . . . . 2 Cannon 20 | . . . . . . . . 4 . . . . . 14 2 Launcher 61 | . . . 7 1 . . . 2 . 28 . 23 . . . Special 20 | . . . . . . . 3 2 . 3 10 2 . . . Kinetic 64 | . 43 . . . . . . 7 . . . . . 14 . Thermal 70 | . 43 . . . . . . 27 . . . . . . . Explosive 51 | . . . . . . . . . . 28 . 23 . . . Electromagnetic 14 | . . . 7 1 . . . 2 . . . . . . 4 Robot Hit Streak 8 | . 8 . 1 . . . 4 7 . 1 3 2 . 1 1 Robot Miss Streak 4 | . 4 . 1 . . . . 3 . 1 3 . . 2 1 Penetration Max . | . . . . . . . . . . . . . . . . Secondary Targets 1 | . 1 . . . . . . . . . . . . . . Max Gunslinging Chain 1 | . 1 . . . . . . . . . . . . . . Shots Hit Robots 217 | . 55 . 13 8 . 5 14 35 8 39 14 18 . 6 2 Core Hits 172 | . 23 . 5 1 . 1 1 23 5 65 6 37 . 5 . Critical Kills 1 | . . . . . . . . . . 1 . . . . . Critical Parts Destroyed 6 | . . . 1 2 . 1 . 1 . 1 . . . . . Critical Strikes 15 | . 1 . 1 2 . 1 . 1 . 5 . 1 . 3 . Burn 1 | . 1 . . . . . . . . . . . . . . Blast 3 | . . . . . . . . . . . . . . 3 . Smash 7 | . . . 1 2 . 1 . 1 . 2 . . . . . Sever 4 | . . . . . . . . . . 3 . 1 . . . Melee Attacks 260 | . . . 28 9 . 8 30 29 28 81 16 22 . 9 . Impact 122 | . . . 28 9 . 8 25 29 3 11 2 3 . 4 . Slashing 125 | . . . . . . . . . 25 70 14 16 . . . Piercing 8 | . . . . . . . . . . . . 3 . 5 . Sneak Attacks 34 | . . . 5 1 . . 7 3 1 2 7 8 . . . Combat Hostiles 1 | . . . . . . . . . . 1 . . . . . Follow-up Attacks 14 | . . . . 2 . 1 2 . . 6 1 2 . . . Damage Inflicted 11433 | . 698 . 1068 310 . 178 222 1227 320 3877 604 2624 . 262 43 Guns 1089 | . 698 . . . . . . 386 . . . . . . 5 Cannons 363 | . . . . . . . . 63 . . . . . 262 38 Explosions 4754 | . . . 268 82 . . . 420 . 2235 . 1749 . . . Melee 5227 | . . . 800 228 . 178 222 358 320 1642 604 875 . . . Ramming . | . . . . . . . . . . . . . . . . Kinetic 736 | . 319 . . . . . . 155 . . . . . 262 . Thermal 791 | . 379 . 37 . . . . 375 . . . . . . . Explosive 3984 | . . . . . . . . . . 2235 . 1749 . . . Electromagnetic 695 | . . . 231 82 . . . 339 . . . . . . 43 Impact 2194 | . . . 800 228 . 178 222 358 . 232 106 70 . . . Slashing 3002 | . . . . . . . . . 320 1410 498 774 . . . Piercing 31 | . . . . . . . . . . . . 31 . . . Highest Corruption 5 | . . . 1 1 1 1 . . 1 2 . 5 . . . Average Corruption 2 | . . . 1 1 1 1 . . 1 1 . 5 . . . Corruption Purged 4 | . . . . . . . . . 2 2 . . . . . Corruption Blocked . | . . . . . . . . . . . . . . . . Effects 31 | . . . 3 2 3 . . . . 1 . 22 . . . Message Errors 6 | . . . 1 . 1 . . . . . . 4 . . . Matter Fused 4 | . . . 1 1 . . . . . 1 . 1 . . . Heat Flow Errors 3 | . . . . . . . . . . . . 3 . . . Energy Discharges 6 | . . . . 1 1 . . . . . . 4 . . . Parts Rejected 2 | . . . . . . . . . . . . 2 . . . Parts Fused 1 | . . . . . . . . . . . . 1 . . . Data Loss (minor) 6 | . . . . . 1 . . . . . . 5 . . . Data Loss (major) 1 | . . . . . . . . . . . . 1 . . . Alerts 2 | . . . 1 . . . . . . . . 1 . . . Overload Shots . | . . . . . . . . . . . . . . . . Overflow Damage 1020 | . . . 283 83 . 57 15 87 43 219 . 221 . 12 . Projectiles 12 | . . . . . . . . . . . . . . 12 . Explosions 41 | . . . . . . . . . . 29 . 12 . . . Melee 967 | . . . 283 83 . 57 15 87 43 190 . 209 . . . Knockbacks 10 | . . . 3 3 . . . 1 . . 1 . . 2 . Impact 8 | . . . 3 3 . . . 1 . . 1 . . . . Kinetic 2 | . . . . . . . . . . . . . . 2 . Secondary . | . . . . . . . . . . . . . . . . Self-Inflicted Damage 18 | . . . 18 . . . . . . . . . . . . Shots 1 | . . . 1 . . . . . . . . . . . . Rammed . | . . . . . . . . . . . . . . . . Targets Rammed . | . . . . . . . . . . . . . . . . Kicked . | . . . . . . . . . . . . . . . . Crushed . | . . . . . . . . . . . . . . . . Highest Temperature 306 | . 198 . 239 11 . . 15 36 . 42 306 205 . . 24 Average Temperature 44 | . 41 . 71 9 . . 8 11 . 14 163 96 . . 18 Received Heat Transfer 1592 | . 168 . 210 96 . . 252 416 . 126 12 174 . 138 . Siege Activations . | . . . . . . . . . . . . . . . . Martial Activations . | . . . . . . . . . . . . . . . . Shielding Activations . | . . . . . . . . . . . . . . . . Robots Disrupted . | . . . . . . . . . . . . . . . . Combat Hostiles . | . . . . . . . . . . . . . . . . Robots Corrupted 11 | . . . 4 3 . 1 1 1 . 1 . . . . . Combat Hostiles 4 | . . . . 2 . 1 . . . 1 . . . . . Parts Fried 9 | . . . 1 7 . . . . . 1 . . . . . Impact Corruptions 23 | . . . 7 5 . 3 2 4 . 2 . . . . . Robots Melted . | . . . . . . . . . . . . . . . . Combat Hostiles . | . . . . . . . . . . . . . . . . Parts Melted 1 | . . . . . . . . 1 . . . . . . . Heat Transferred 1877 | . 1113 . 50 . . . . 714 . . . . . . . Parts Sabotaged . | . . . . . . . . . . . . . . . . Parts Stolen . | . . . . . . . . . . . . . . . . Parts Stripped . | . . . . . . . . . . . . . . . . Power Chain Reactions 4 | . . . 3 . . . . 1 . . . . . . . Alert | -11 -10 -10 -9 -9 -9 -8 -8 -8 -7 -7 -6 -6 -5 -5 -4 ------- Run | Yrd Mat Min Mat Min Exi Min Mat Sto Fac Gar Fac Ext Fac DSF Fac Maximum Alert Level 4 | . . . 1 . . . . . . 4 2 . . . . Low Security (%) 83 | 100 100 100 88 100 . 100 100 100 100 14 . 100 100 100 100 Level 1 5 | . . . 11 . . . . . . 15 46 . . . . Level 2 5 | . . . . . . . . . . 21 53 . . . . Level 3 4 | . . . . . . . . . . 35 . . . . . Level 4 1 | . . . . . . . . . . 13 . . . . . Level 5 . | . . . . . . . . . . . . . . . . High Security . | . . . . . . . . . . . . . . . . Max Security . | . . . . . . . . . . . . . . . . Peak Influence 1132 | . 166 46 250 97 . 70 125 74 43 1132 594 144 2 101 31 Initial 594 | . . 46 . 52 . . . 35 . 21 594 144 2 . 31 Average 119 | . 43 5 86 63 . 18 6 17 8 640 428 36 . 18 3 Influence Increases 3790 | . 379 . 639 90 . 70 376 302 198 1191 65 345 . 135 . Destroy 0b10 Robot/C 1960 | . 240 . 320 60 . 60 160 140 80 660 20 120 . 100 . Destroy 0b10 Robot/NC 210 | . 10 . 20 5 . . 5 35 10 40 25 60 . . . Destroy Leader 324 | . 54 . 76 10 . 10 42 22 40 40 . 20 . 10 . Allied During Kill 55 | . . . 15 . . . 11 5 . 24 . . . . . Successful Hack 138 | . 45 . 8 . . . 10 7 38 12 . 18 . . . Disable Machine 165 | . . . 15 15 . . 45 15 . 60 15 . . . . Anti-Garrison Action 100 | . . . . . . . . . . 100 . . . . . Destroy Structure 433 | . . . 20 . . . 43 18 15 240 5 82 . 10 . Partial Spotted 90 | . . . 75 . . . . 15 . . . . . . . Lose Combat Pursuer 315 | . 30 . 90 . . . 60 45 15 15 . 45 . 15 . Influence Decreases 3790 | . 260 119 505 202 22 70 292 386 168 89 902 634 6 74 61 Entered New Map 958 | . . 73 . 82 22 . . 49 . 9 538 151 4 . 30 Time Decay 2081 | . 230 46 305 90 . 70 182 236 168 . 334 387 2 . 31 Lost Part 403 | . 30 . 10 30 . . 50 43 . 40 30 96 . 74 . Lost Ally 198 | . . . 40 . . . 60 58 . 40 . . . . . Purge Threat 150 | . . . 150 . . . . . . . . . . . . Squads Dispatched 34 | . 3 . 3 . . . 6 5 13 . 1 1 . 1 1 Investigation 11 | . 1 . 1 . . . 2 1 6 . . . . . . Extermination 6 | . . . . . . . . . 5 . . . . . 1 Reinforcement 12 | . 2 . 2 . . . 1 2 2 . 1 1 . 1 . Assault 2 | . . . . . . . . 2 . . . . . . . Garrison 3 | . . . . . . . 3 . . . . . . . . Intercept . | . . . . . . . . . . . . . . . . Searches Triggered . | . . . . . . . . . . . . . . . . Construction Impeded 1 | . . . . . . . . . . . . 1 . . . Haulers Reinforced . | . . . . . . . . . . . . . . . . Active Scanning Responses . | . . . . . . . . . . . . . . . . Cargo Convoy Interrupts . | . . . . . . . . . . . . . . . . Stealth | -11 -10 -10 -9 -9 -9 -8 -8 -8 -7 -7 -6 -6 -5 -5 -4 --------- Run | Yrd Mat Min Mat Min Exi Min Mat Sto Fac Gar Fac Ext Fac DSF Fac Distress Signals 16 | . 2 . 4 . . . 3 3 2 . . 2 . . . Communications Jammed . | . . . . . . . . . . . . . . . . Distress Signals . | . . . . . . . . . . . . . . . . Times Spotted 185 | . 25 . 39 6 . 4 24 30 9 17 7 13 . 10 1 Peak Tracking Total 8 | . 5 . 7 3 . 3 8 7 2 4 4 5 . 6 1 Tactical Retreats 34 | . 4 . 10 2 . . 4 8 1 1 1 2 . 1 . ECM-based Alert Blocks 41 | . 5 . 12 4 . . 2 16 . . 1 1 . . . Traps | -11 -10 -10 -9 -9 -9 -8 -8 -8 -7 -7 -6 -6 -5 -5 -4 ------- Run | Yrd Mat Min Mat Min Exi Min Mat Sto Fac Gar Fac Ext Fac DSF Fac Traps Triggered 16 | . . . 3 . . . 1 1 3 4 2 2 . . . Indirectly 3 | . . . 3 . . . . . . . . . . . . Trap Hack Attempts . | . . . . . . . . . . . . . . . . Triggered . | . . . . . . . . . . . . . . . . Disarmed 4 | . 4 . . . . . . . . . . . . . . Reprogrammed . | . . . . . . . . . . . . . . . . Reused . | . . . . . . . . . . . . . . . . Traps Extracted . | . . . . . . . . . . . . . . . . Installed . | . . . . . . . . . . . . . . . . Triggered . | . . . . . . . . . . . . . . . . Machines | -11 -10 -10 -9 -9 -9 -8 -8 -8 -7 -7 -6 -6 -5 -5 -4 ---------- Run | Yrd Mat Min Mat Min Exi Min Mat Sto Fac Gar Fac Ext Fac DSF Fac Machines Disabled 11 | . . . 1 1 . . 3 1 . 4 1 . . . . Max in Single Turn 2 | . . . . 1 . . . 1 . 2 1 . . . . Machines Repaired . | . . . . . . . . . . . . . . . . Machines Dismantled . | . . . . . . . . . . . . . . . . Machines Sabotaged . | . . . . . . . . . . . . . . . . Overloaded Fab Kills . | . . . . . . . . . . . . . . . . Hacking | -11 -10 -10 -9 -9 -9 -8 -8 -8 -7 -7 -6 -6 -5 -5 -4 --------- Run | Yrd Mat Min Mat Min Exi Min Mat Sto Fac Gar Fac Ext Fac DSF Fac Machines Accessed 51 | . 8 . 8 . 2 . 6 3 14 3 1 5 1 . . Terminals 36 | . 6 . 6 . . . 5 3 7 3 . 5 1 . . Fabricators 2 | . . . . . . . . . 2 . . . . . . Repair Stations 3 | . . . . . . . . . 2 . 1 . . . . Recycling Units 3 | . 2 . . . . . . . 1 . . . . . . Scanalyzers 4 | . . . 2 . . . 1 . 1 . . . . . . Garrison Access 1 | . . . . . . . . . 1 . . . . . . Total Hacks 125 | . 27 . 23 . 2 . 15 5 33 7 1 11 1 . . Successful 60 | . 17 . 12 . 2 . 3 3 17 1 . 4 1 . . Failed 62 | . 9 . 11 . . . 11 2 15 6 1 7 . . . Catastrophic 12 | . 1 . 5 . . . . . 3 1 . 2 . . . Database Lockouts 3 | . 1 . . . . . 1 . 1 . . . . . . Manual 67 | . 24 . 15 . 1 . 11 1 12 . . 3 . . . Terminals 93 | . 24 . 16 . . . 12 5 17 7 . 11 1 . . Fabricators 6 | . . . . . . . . . 6 . . . . . . Repair Stations 8 | . . . . . . . . . 7 . 1 . . . . Recycling Units 4 | . 3 . . . . . . . 1 . . . . . . Scanalyzers 11 | . . . 7 . . . 3 . 1 . . . . . . Garrison Access 1 | . . . . . . . . . 1 . . . . . . Terminal Hacks 24 | . 6 . 2 . 2 . . 3 6 1 . 3 1 . . Record 4 | . . . . . 1 . . . 3 . . . . . . Part Schematic 1 | . 1 . . . . . . . . . . . . . . Robot Analysis 1 | . 1 . . . . . . . . . . . . . . Open Door 5 | . . . . . . . . 2 . . . 3 . . . Open DSF 1 | . . . . . . . . . . . . . 1 . . Branch Access Points 1 | . 1 . . . . . . . . . . . . . . Emergency Access Points 2 | . . . . . . . . . 1 1 . . . . . Alert Level 3 | . . . 1 . . . . 1 1 . . . . . . Unreport Threat 1 | . . . 1 . . . . . . . . . . . . Locate Traps 1 | . 1 . . . . . . . . . . . . . . Disarm Traps 1 | . 1 . . . . . . . . . . . . . . Patrol Status 1 | . . . . . . . . . 1 . . . . . . Registered Components 1 | . 1 . . . . . . . . . . . . . . Proto ID Catalog 1 | . . . . . 1 . . . . . . . . . . Fabricator Hacks 2 | . . . . . . . . . 2 . . . . . . Network Status 1 | . . . . . . . . . 1 . . . . . . Load Schematic 1 | . . . . . . . . . 1 . . . . . . Repair Station Hacks 3 | . . . . . . . . . 3 . . . . . . Scan Component 2 | . . . . . . . . . 2 . . . . . . Repair 1 | . . . . . . . . . 1 . . . . . . Recycling Unit Hacks 2 | . 2 . . . . . . . . . . . . . . Report Inventory 2 | . 2 . . . . . . . . . . . . . . Scanalyzer 7 | . . . 6 . . . 1 . . . . . . . . Retrieve Study 7 | . . . 6 . . . 1 . . . . . . . . Garrison Access Hacks 1 | . . . . . . . . . 1 . . . . . . Unlock Access 1 | . . . . . . . . . 1 . . . . . . Unauthorized Hacks 21 | . 9 . 4 . . . 2 . 5 . . 1 . . . Terminals 19 | . 8 . 4 . . . 2 . 4 . . 1 . . . Assimilate 2 | . 2 . . . . . . . . . . . . . . Botnet 17 | . 6 . 4 . . . 2 . 4 . . 1 . . . Fabricators . | . . . . . . . . . . . . . . . . Repair Stations . | . . . . . . . . . . . . . . . . Recycling Units 2 | . 1 . . . . . . . 1 . . . . . . Reject 2 | . 1 . . . . . . . 1 . . . . . . Scanalyzers . | . . . . . . . . . . . . . . . . Garrison Access . | . . . . . . . . . . . . . . . . Data Cores Recovered . | . . . . . . . . . . . . . . . . Used . | . . . . . . . . . . . . . . . . Hacking Detections 37 | . 7 . 7 . . . 5 1 9 3 1 4 . . . Full Trace Events 9 | . 2 . 1 . . . 1 . 5 . . . . . . Feedback Events 2 | . . . 1 . . . . . 1 . . . . . . Corruption 2 | . . . 1 . . . . . 1 . . . . . . Feedback Blocked . | . . . . . . . . . . . . . . . . Robot Schematics Acquired . | . . . . . . . . . . . . . . . . Robots Built . | . . . . . . . . . . . . . . . . Authchips . | . . . . . . . . . . . . . . . . Time . | . . . . . . . . . . . . . . . . Total Robot Build Rating . | . . . . . . . . . . . . . . . . Part Schematics Acquired 1 | . 1 . . . . . . . . . . . . . . Parts Built . | . . . . . . . . . . . . . . . . Authchips . | . . . . . . . . . . . . . . . . Time . | . . . . . . . . . . . . . . . . Total Part Build Rating . | . . . . . . . . . . . . . . . . Part Studies Acquired 7 | . . . 6 . . . 1 . . . . . . . . Parts Repaired 1 | . . . . . . . . . 1 . . . . . . Time 30 | . . . . . . . . . 30 . . . . . . Parts Recycled . | . . . . . . . . . . . . . . . . Recycled Matter . | . . . . . . . . . . . . . . . . Retrieved Matter . | . . . . . . . . . . . . . . . . Retrieved Components . | . . . . . . . . . . . . . . . . Parts Scanalyzed . | . . . . . . . . . . . . . . . . Part Schematics Acquired . | . . . . . . . . . . . . . . . . Parts Damaged . | . . . . . . . . . . . . . . . . Bothacking | -11 -10 -10 -9 -9 -9 -8 -8 -8 -7 -7 -6 -6 -5 -5 -4 ------------ Run | Yrd Mat Min Mat Min Exi Min Mat Sto Fac Gar Fac Ext Fac DSF Fac Used RIF Installer 1 | . . . . . . . . . . 1 . . . . . Robots Hacked 3 | . . . . . . . 1 . . . 2 . . . . Non-combat 1 | . . . . . . . 1 . . . . . . . . Combat 2 | . . . . . . . . . . . 2 . . . . Robot Hacks Applied 4 | . . . . . . . 1 . . . 3 . . . . check_alert 1 | . . . . . . . 1 . . . . . . . . find_garrison 1 | . . . . . . . . . . . 1 . . . . spike_heat 1 | . . . . . . . . . . . 1 . . . . overload_power 1 | . . . . . . . . . . . 1 . . . . Relay Couplers Released . | . . . . . . . . . . . . . . . . Attached 3 | . . . . . . . . . . . 3 . . . . Fabnet Peak Effective % . | . . . . . . . . . . . . . . . . Robots Rewired . | . . . . . . . . . . . . . . . . Allies Hacked . | . . . . . . . . . . . . . . . . Hacks Repelled . | . . . . . . . . . . . . . . . . Allies | -11 -10 -10 -9 -9 -9 -8 -8 -8 -7 -7 -6 -6 -5 -5 -4 -------- Run | Yrd Mat Min Mat Min Exi Min Mat Sto Fac Gar Fac Ext Fac DSF Fac Total Allies 12 | . . 2 . . . . 3 4 . 2 . 1 . . . Largest Group 2 | . . 2 2 . . . 1 2 . 2 . 1 . . . Highest-Rated Group 157 | . . 49 49 . . . 34 62 . 157 . 31 . . . Highest-Rated Ally 95 | . . 31 31 . . . 34 31 . 95 . 31 . . . Total Orders 2 | . . . . . . . 2 . . . . . . . . ROAM 1 | . . . . . . . 1 . . . . . . . . FOLLOW 1 | . . . . . . . 1 . . . . . . . . Ally Attacks 92 | . . . 29 . . . 27 17 . 17 . 2 . . . Total Damage 2392 | . . . 403 . . . 703 282 . 962 . 42 . . . Kills 25 | . . . 11 . . . 7 1 . 6 . . . . . Allies Corrupted . | . . . . . . . . . . . . . . . . Allies Melted . | . . . . . . . . . . . . . . . . Field Lobotomies 5 | . . . . . . . 3 2 . . . . . . . Intel | -11 -10 -10 -9 -9 -9 -8 -8 -8 -7 -7 -6 -6 -5 -5 -4 ------- Run | Yrd Mat Min Mat Min Exi Min Mat Sto Fac Gar Fac Ext Fac DSF Fac Active Infowar (turns) 3166 | . 512 427 285 42 . . 1326 191 . . 43 339 . . 1 Jamming 1 | . . . . . . . . . . . . . . . 1 ECM 3165 | . 512 427 285 42 . . 1326 191 . . 43 339 . . . Robot Analysis Total 1 | . 1 . . . . . . . . . . . . . . Derelict Logs Recovered 3 | . . 3 . . . . . . . . . . . . . Drone Launches . | . . . . . . . . . . . . . . . . Drone Recoveries . | . . . . . . . . . . . . . . . . Exploration | -11 -10 -10 -9 -9 -9 -8 -8 -8 -7 -7 -6 -6 -5 -5 -4 ------------- Run | Yrd Mat Min Mat Min Exi Min Mat Sto Fac Gar Fac Ext Fac DSF Fac Turns Passed 13626 | 54 995 427 774 186 931 268 2410 788 2317 1506 742 1423 219 173 413 Spaces Moved 9204 | 39 586 334 989 132 773 74 882 420 2040 1328 482 794 86 73 172 Core 300 | 6 . . . . . . . . . . . 17 86 19 172 Treads . | . . . . . . . . . . . . . . . . Legs 4381 | 33 586 334 . 121 773 74 882 115 . 204 482 777 . . . Wheels 54 | . . . . . . . . . . . . . . 54 . Hover 4469 | . . . 989 11 . . . 305 2040 1124 . . . . . Flight . | . . . . . . . . . . . . . . . . Fastest Speed 38 | 50 120 120 48 48 120 120 120 38 38 38 120 120 200 50 150 Average Speed 86 | 109 120 120 48 117 120 120 121 61 38 67 120 121 237 133 181 Slowest Speed 400 | 120 120 120 52 190 120 120 260 170 42 190 120 200 250 250 400 Overloaded Moves . | . . . . . . . . . . . . . . . . Propulsion Burnouts . | . . . . . . . . . . . . . . . . Robots Hopped . | . . . . . . . . . . . . . . . . Potential Cave-ins 7 | . . . . . . . . . . . . 7 . . . Cave-ins Triggered 1 | . . . . . . . . . . . . 1 . . . Exploration Rate (%) 46 | 3 92 72 73 21 94 21 47 59 44 97 11 48 2 54 3 Regions Visited 15 Branch Regions 6 Pre-discovered Areas . | . . . . . . . . . . . . . . . . Known Exits Taken 4 | . 1 . . . . . 1 . 1 . . . 1 . . Unknown Exits Taken 9 | 1 . 1 1 1 1 1 . 1 . . 1 1 . . . Scrap Searched 3 | . . 2 . 1 . . . . . . . . . . . Spaces Dug 52 | . . . 6 . . . 8 11 15 3 5 2 . 2 . Terrain Destroyed 416 | . . . 19 . . . 8 16 15 189 5 158 . 6 . Melee 52 | . . . 6 . . . 8 11 15 3 5 2 . 2 . Projectile 4 | . . . . . . . . . . . . . . 4 . AOE 360 | . . . 13 . . . . 5 . 186 . 156 . . . Terrain Rammed . | . . . . . . . . . . . . . . . . Walls Destroyed . | . . . . . . . . . . . . . . . . Machines Disabled . | . . . . . . . . . . . . . . . . Actions | -11 -10 -10 -9 -9 -9 -8 -8 -8 -7 -7 -6 -6 -5 -5 -4 --------- Run | Yrd Mat Min Mat Min Exi Min Mat Sto Fac Gar Fac Ext Fac DSF Fac Total 14338 | 50 795 360 1248 150 775 242 2184 861 3545 1812 619 1203 102 124 268 Wait 4294 | . 138 27 187 . . 163 1234 317 1433 266 86 334 13 16 80 Move 9187 | 38 585 333 988 131 772 73 881 419 2039 1326 481 792 85 72 172 Hop . | . . . . . . . . . . . . . . . . Pick Up 149 | 6 16 . 15 3 1 . 14 21 18 23 10 7 2 8 5 Fast Attach . | . . . . . . . . . . . . . . . . Attach 116 | 6 5 . 5 3 . . 9 18 9 20 9 15 2 8 7 Detach 21 | . . . 1 . . . 1 5 . 6 . 7 . . 1 Swap 51 | . 1 . 9 2 2 . 9 9 7 8 3 1 . . . Drop 77 | . 5 . 11 3 . . 8 13 14 18 4 1 . . . Fire 164 | . 45 . 7 1 . . 3 25 . 31 10 25 . 14 3 Melee 225 | . . . 25 7 . 6 25 29 25 70 14 18 . 6 . Ram . | . . . . . . . . . . . . . . . . Kick . | . . . . . . . . . . . . . . . . Crush . | . . . . . . . . . . . . . . . . Escape Stasis 54 | . . . . . . . . 5 . 44 2 3 . . . Rewire . | . . . . . . . . . . . . . . . . Trap . | . . . . . . . . . . . . . . . . Miscellaneous . | . . . . . . . . . . . . . . . . Route ------- -11/Scrapyard -10/Materials (discovered 5 exits: *Mat x3 / *Min x2) -10/Mines (discovered 2 exits: *Mat x2) -9/Materials (discovered 4 exits: *Mat x2 / [*Min x2]) -9/Mines -9/Exiles (discovered 2 exits: [*Min x2]) -8/Mines -8/Materials -8/Storage -7/Factory (discovered 4 exits: *Fac x2 / [*Low] / Gar) -7/Garrison (discovered 3 exits: *Fac x3) -6/Factory -6/Extension -5/Factory -5/DSF -4/Factory History --------- Turn | Location | Event 28 | -11/Scrapyard | Discovered new exit (range 15) 55 | -11/Scrapyard | Entered Materials 219 | -10/Materials | Discovered new exit (range 16) 303 | -10/Materials | Build established: Mutant 328 | -10/Materials | Discovered new exit (range 7) 502 | -10/Materials | Discovered new exit (range 8) 555 | -10/Materials | Derelicts attacked the area 807 | -10/Materials | Central database locked down 860 | -10/Materials | Discovered new exit (range 16) 1025 | -10/Materials | Discovered new exit (range 15) 1043 | -10/Materials | Identified exit to Mines 1050 | -10/Materials | Entered Mines 1064 | -10/Mines | Learned Materials stockpile data 1423 | -10/Mines | Learned Materials trap positions 1423 | -10/Mines | Discovered new exit (range 6) 1459 | -10/Mines | Discovered new exit (range 9) 1477 | -10/Mines | Entered Materials 1477 | -9/Materials | Accompanied by 2 allies 1477 | -9/Materials | Evolved 2 slots: Propulsion x2 1478 | -9/Materials | Loaded intel: 19 trap records 1482 | -9/Materials | Led the pair of lost Derelicts to an unsafe place 1585 | -9/Materials | Discovered new exit (range 13) 1746 | -9/Materials | Discovered new exit (range 13) 1864 | -9/Materials | Discovered new exit (range 7) 2241 | -9/Materials | Discovered new exit (range 16) 2251 | -9/Materials | Entered Mines 2268 | -9/Mines | Core integrity fell below 50% 2292 | -9/Mines | Lost 3 parts (2n1w) 2374 | -9/Mines | Deemed a non-threat by the Exiles lab entrance 2374 | -9/Mines | Discovered new exit (range 5) 2437 | -9/Mines | Entered Exiles 2469 | -9/Exiles | Met 8R-AWN 2488 | -9/Exiles | Met EX-HEX 2532 | -9/Exiles | Met EX-BIN 2554 | -9/Exiles | Aligned with FarCom system 2555 | -9/Exiles | Given EX-Vault access code 2582 | -9/Exiles | Build established: Scavenger-Mutant 2595 | -9/Exiles | Opened EX-Vault 2602 | -9/Exiles | Found Field Lobotomy Kit 2639 | -9/Exiles | Warned to stay clear of 0b10 Research branches 2720 | -9/Exiles | Met EX-DEC 2816 | -9/Exiles | Discovered new exit (range 15) 2908 | -9/Exiles | Visited The Gauntlet 3221 | -9/Exiles | Discovered new exit (range 14) 3368 | -9/Exiles | Left Exiles lab with Field Lobotomy Kit 3368 | -9/Exiles | Entered Mines 3630 | -8/Mines | Discovered new exit (range 6) 3636 | -8/Mines | Entered Materials 3636 | -8/Materials | Evolved 2 slots: Utility x2 3637 | -8/Materials | Identified exit to Storage 3739 | -8/Materials | Assimilated H-55 Commando with FLK Orb 3760 | -8/Materials | Garrison activated, responded to threat 3786 | -8/Materials | Lost 3 parts (1p1n1u) 3797 | -8/Materials | Assimilated D-53 Grenadier with FLK Orb 3886 | -8/Materials | Central database locked down 5981 | -8/Materials | Assimilated L-31 Rogue with FLK Orb 6046 | -8/Materials | Entered Storage 6127 | -8/Storage | Lost 4 parts (1p2n1w) 6533 | -8/Storage | Assimilated Y-45 Defender with FLK Orb 6553 | -8/Storage | Assimilated Y-45 Defender with FLK Orb 6565 | -8/Storage | Met a pair of Derelict thieves 6622 | -8/Storage | Core integrity fell below 50% 6721 | -8/Storage | Found Prototype Launcher 6724 | -8/Storage | Identified Gui. Missile Launcher 6817 | -8/Storage | Discovered new exit (range 5) 6834 | -8/Storage | Entered Factory 6834 | -7/Factory | Evolved 2 slots: Power x1, Utility x1 6856 | -7/Factory | Build established: Mutant 7019 | -7/Factory | Discovered new exit (range 6) 7188 | -7/Factory | Build established: Gladiator 8087 | -7/Factory | Discovered new exit (range 9) 8680 | -7/Factory | Central database locked down 8758 | -7/Factory | Repaired Aerolev Unit 8870 | -7/Factory | Allied Derelicts emerged from ambush trap array 9145 | -7/Factory | Identified exit to Garrison 9149 | -7/Factory | Discovered new exit (range 12) 9151 | -7/Factory | Entered Garrison 9448 | -7/Garrison | Discovered new exit (range 14) 9451 | -7/Garrison | Found embedded Infiltrators 9699 | -7/Garrison | Triggered checkpoint 9913 | -7/Garrison | Triggered checkpoint 10026 | -7/Garrison | Discovered new exit (range 4) 10059 | -7/Garrison | Triggered checkpoint 10189 | -7/Garrison | Triggered checkpoint 10218 | -7/Garrison | Discovered new exit (range 5) 10233 | -7/Garrison | Triggered checkpoint 10516 | -7/Garrison | Installed Relay Interface Framework 10657 | -7/Garrison | Entered Factory 10657 | -6/Factory | Evolved 2 slots: Utility x2 10679 | -6/Factory | Build established: Scavenger-Mutant 11379 | -6/Factory | Discovered new exit (range 15) 11399 | -6/Factory | Entered Extension 11434 | -6/Extension | Build established: Scavenger-Gladiator 11600 | -6/Extension | Rescued a captive Derelict 11649 | -6/Extension | Rescued a captive Derelict 11789 | -6/Extension | Spotted B-75 Beast 11830 | -6/Extension | Destroyed B-75 Beast 11901 | -6/Extension | Crushed by falling debris 12310 | -6/Extension | Build established: Hacker-Gladiator 12349 | -6/Extension | Disrupted transfer network 12630 | -6/Extension | Spotted B-75 Beast 12803 | -6/Extension | Core integrity fell below 50% 12820 | -6/Extension | Discovered new exit (range 3) 12822 | -6/Extension | Entered Factory 12822 | -5/Factory | Evolved 2 slots: Utility x2 12823 | -5/Factory | Lost 7 parts (2p2n1u2w) 12826 | -5/Factory | Identified exit to DSF 13041 | -5/Factory | Entered DSF 13074 | -5/DSF | Additional patrols routed to DSF 13122 | -5/DSF | Discovered new exit (range 14) 13214 | -5/DSF | Entered Factory 13214 | -4/Factory | Evolved 2 slots: Utility x1, Weapon x1 13243 | -4/Factory | Lost 10 parts (2p2n3u3w) 13441 | -4/Factory | Build established: Mutant 13627 | -4/Factory | Self-destructed Last Messages --------------- 13356_ K-01 Serf pushes G-67 Veteran. 13356_ K-01 Serf pushes Y-64 Sentinel. 13359_ K-01 Serf pushes G-67 Veteran. 13359_ K-01 Serf pushes Y-64 Sentinel. 13360_ K-01 Serf pushes G-67 Veteran. 13364_ K-01 Serf pushes Y-64 Sentinel. 13399_ K-01 Serf collects debris. 13480_ K-01 Serf pushes G-67 Veteran. 13493_ Connecting with Terminal... 13493_ Current location identified: Factory 13496_ ALERT: Potential suspicious activity detected, Programmers report to Factory Zone 7H. 13529_ Acquired Hpw. Shock Rifle. 13537_ Acquired Unknown Device. 13538_ Identified Adv. Transmission Jammer. 13566_ Acquired Imp. Antigrav System. 13584_ K-01 Serf cleans the TF Node. 13588_ Connecting with DSF Access... 13591_ K-01 Serf cleans the TF Node. Map ----- +----------------------------------------------------+ | ?????????????????????????????????????????????????? | | ?????????????????????????????????????????????????? | | ?????????????????????????????????????????????????? | | ?????????????????????????????????????????????????? | | ?????????????????????????????????????????????????? | | ?????????????????????????????????????????????????? | | ?????????????????????????????????????????????????? | | ?????????????????????????????????????????????????? | | ?????????????????????????????????????????????????? | | ?????????????????????????????????????????????????? | | ?????????????????????????????????????????????????? | | ?????????????????????????????????????????????????? | | ?????????????????????????????????????????????????? | | ?????????????????????????????????????????????????? | | ?????????????????????????????????????????????????? | | ????????????????########?????????????????????????? | | ??????#?????????# #?????????????????????????? | | ??????# ????????# """ #?????????????????????????? | | ??????# ?????# """ #??????###########????????? | | ??????# ????# """ ######## #????????? | | ??????# ????# # ![[ # #????????? | | ??????# ?????? # ! # #????????? | | ??????# ########+#?# [ # """"""" #????????? | | ??????+ #?# + """"""" #????????? | | ??????# #?# # """"""" #????????? | | ??????# "" #?# @ # """"""" #????????? | | ??????### """ #?###p#### #????????? | | ????????# "T #?# p ##+##############+### | | ????????#! "" ### | | ????????# "" " | | ????????# "" ##### | | ????????# #???# ######## T#######+#?? | | ????????# #???### ###???#########???????? | | ????????# ########+#?????# #?????# #???????? | | ????????# ??????? ????# #?????# #???????? | | ????????#???????? ??# #?????# #???????? | | ?????????????????" """" ##+####### #???????? | | ?????????????????" """" # # #???????? | | ?????????????????" """" # # ###???????? | | ?????????????????" ""???# # #?????????? | | ?????????????????? "????# # #?????????? | | ?????????????????? "????# # #?????????? | | ?????????????????? ?????# # #?????????? | | ?????????????????? ?????# # #?????????? | | ?????????????????? ?????# # #?????????? | | ????????????????????????# # #?????????? | | ??????????????????????#+######+### #?????????? | | ??????????????? #?????????? | | ??????????????? +?????????? | | ??????????????? #?????????? | +----------------------------------------------------+ Best States ------------- Heat Dissipation 48 Coolant Potential 160 Energy Generation 27 Energy Capacity 480 Matter Stores 300 Matter Capacity 300 Sight Range 16 Terrain Scan Density 10 ECM Strength 2 Armor Coverage 150 Resistance: EM 15 Power Shielding 33 Evasion (%) 63 Melee Accuracy 12 Offensive Hacking 10 Defensive Hacking 10 Relay Coupler Types 3 Relay Coupler Value 92 Item Schematics ----------------- Signal Interpreter | -10/Materials | Hacked Robot Schematics ------------------ None Fabricated ------------ Nothing Repaired ---------- Aerolev Unit | 33% | -7/Factory Studied --------- Datajack | -9/Materials | Hacked Hover Unit | -9/Materials | Hacked Autogun | -9/Materials | Hacked Hammer | -9/Materials | Hacked Lgt. Ion Engine | -9/Materials | Hacked Ion Engine | -9/Materials | Hacked Lgt. Nuclear Core | -8/Materials | Hacked Alien Tech Used ----------------- None Achievements -------------- Dramatic Entrance Error 47 Join The Dark Side Mindtrick Party Time Thread The Needle Around The Corner Challenges ------------ None Game ------ Seed CloakingDisruptorProtomatter Manual? 0 Play Time 02:48:14 Cumulative 24.7 hours Start 2026.02.19 @ 23:56:18 End 2026.02.20 @ 02:57:37 Sessions 1 Manual Loads 0 Difficulty Rogue Special Mode None Game No. 27 Rogue 27 Adventurer 0 Explorer 0 Win Type - Total 0 Types 0/0/0/0/0/0/0/0/0/0 Lore% 29 Gallery% 28 Achievement% 22 Wizard Run 0 Options --------- Layout 1 ASCII 0 Keyboard 0 Movement Mouse Keybinds 0 Fullscreen 1 Font 24/Swanston Map View 50x35 Zoom Use 0% Tactical HUD 1 Map Filters NONE Filters NONE Steam 1 RUN: 0019c110-c6c1-4f91-8b28-2d6d5dd21317